[Event "Titled Tuesday Blitz May 4 2021"]
[White "Gabriel, Robert"]
[Black "Cella, Glaucio Dalla Cortt"]
[WhiteFideId "4606477"]
[BlackFideId "2119455"]
[WhiteElo "2203"]
[BlackElo "2011"]
[Result "1-0"]
[Round "10"]
[TimeControl "180+1"]
[Date "2021.05.04"]
[WhiteClock "0:00:20"]
[BlackClock "0:00:30"]

1. d4 {[%clk 0:03:00]}  Nf6 {[%clk 0:03:00]} 2. c4 {[%clk 0:02:58]}  e6 {[%clk 0:03:00]} 3. Nf3 {[%clk 0:02:56]}  Bb4+ {[%clk 0:02:49]} 4. Bd2 {[%clk 0:02:55]}  Bxd2+ {[%clk 0:02:46]} 5. Qxd2 {[%clk 0:02:53]}  O-O {[%clk 0:02:47]} 6. Nc3 {[%clk 0:02:51]}  d5 {[%clk 0:02:47]} 7. e3 {[%clk 0:02:50]}  c6 {[%clk 0:02:45]} 8. Bd3 {[%clk 0:02:47]}  dxc4 {[%clk 0:02:42]} 9. Bxc4 {[%clk 0:02:47]}  b5 {[%clk 0:02:42]} 10. Bd3 {[%clk 0:02:40]}  Bb7 {[%clk 0:02:42]} 11. O-O {[%clk 0:02:39]}  a6 {[%clk 0:02:42]} 12. e4 {[%clk 0:02:35]}  c5 {[%clk 0:02:30]} 13. dxc5 {[%clk 0:02:32]}  b4 {[%clk 0:02:30]} 14. Na4 {[%clk 0:02:28]}  Nxe4 {[%clk 0:02:22]} 15. Bxe4 {[%clk 0:02:24]}  Bxe4 {[%clk 0:02:22]} 16. Qxb4 {[%clk 0:02:03]}  Bxf3 {[%clk 0:02:21]} 17. gxf3 {[%clk 0:02:02]}  Nc6 {[%clk 0:02:20]} 18. Qe4 {[%clk 0:01:54]}  Qg5+ {[%clk 0:02:01]} 19. Kh1 {[%clk 0:01:52]}  Rac8 {[%clk 0:01:38]} 20. Rg1 {[%clk 0:01:39]}  Qd5 {[%clk 0:01:38]} 21. Qxd5 {[%clk 0:01:36]}  exd5 {[%clk 0:01:38]} 22. Nb6 {[%clk 0:01:35]}  Rcd8 {[%clk 0:01:35]} 23. Rad1 {[%clk 0:01:31]}  d4 {[%clk 0:01:32]} 24. Nc4 {[%clk 0:01:24]}  Rd5 {[%clk 0:01:29]} 25. Nb6 {[%clk 0:01:12]}  Rxc5 {[%clk 0:01:24]} 26. Nd7 {[%clk 0:01:10]}  Rc2 {[%clk 0:01:20]} 27. Nxf8 {[%clk 0:01:09]}  Kxf8 {[%clk 0:01:21]} 28. Rc1 {[%clk 0:01:07]}  d3 {[%clk 0:01:14]} 29. Rxc2 {[%clk 0:01:03]}  dxc2 {[%clk 0:01:14]} 30. Rc1 {[%clk 0:01:01]}  Nd4 {[%clk 0:01:15]} 31. Kg2 {[%clk 0:00:59]}  Ke7 {[%clk 0:01:14]} 32. Kf1 {[%clk 0:00:48]}  Kd6 {[%clk 0:01:11]} 33. Ke1 {[%clk 0:00:46]}  Nxf3+ {[%clk 0:01:11]} 34. Ke2 {[%clk 0:00:45]}  Nd4+ {[%clk 0:01:11]} 35. Kd3 {[%clk 0:00:43]}  Kc5 {[%clk 0:01:09]} 36. b4+ {[%clk 0:00:40]}  Kd5 {[%clk 0:01:08]} 37. a4 {[%clk 0:00:38]}  f5 {[%clk 0:01:03]} 38. f4 {[%clk 0:00:36]}  g6 {[%clk 0:00:52]} 39. a5 {[%clk 0:00:31]}  g5 {[%clk 0:00:44]} 40. fxg5 {[%clk 0:00:31]}  f4 {[%clk 0:00:44]} 41. Rxc2 {[%clk 0:00:24]}  Nxc2 {[%clk 0:00:43]} 42. Kxc2 {[%clk 0:00:23]}  Ke4 {[%clk 0:00:43]} 43. Kd2 {[%clk 0:00:23]}  Kf3 {[%clk 0:00:43]} 44. b5 {[%clk 0:00:21]}  Kg2 {[%clk 0:00:27]} 45. bxa6 {[%clk 0:00:21]}  f3 {[%clk 0:00:27]} 46. a7 {[%clk 0:00:21]}  f2 {[%clk 0:00:28]} 47. a8=Q+ {[%clk 0:00:21]}  Kg1 {[%clk 0:00:28]} 48. Qf3 {[%clk 0:00:20]}  f1=Q {[%clk 0:00:29]} 49. Qxf1+ {[%clk 0:00:20]}  Kxf1 {[%clk 0:00:29]} 50. h4 {[%clk 0:00:20]}  Kg2 {[%clk 0:00:30]} 51. h5 {[%clk 0:00:20]} 1-0


[Site "https://www.chess.com"]

[Event "Titled Tuesday Blitz May 4 2021"]
[White "Gelman, Alexander"]
[Black "Kubatko, Ivan"]
[WhiteFideId "4118316"]
[BlackFideId "24111473"]
[WhiteElo "2375"]
[BlackElo "2285"]
[Result "1-0"]
[Round "10"]
[TimeControl "180+1"]
[Date "2021.05.04"]
[WhiteClock "0:00:32"]
[BlackClock "0:00:05"]

1. d4 {[%clk 0:03:00]}  d5 {[%clk 0:03:00]} 2. Nc3 {[%clk 0:03:00]}  Nf6 {[%clk 0:02:59]} 3. Bf4 {[%clk 0:03:01]}  a6 {[%clk 0:02:59]} 4. e3 {[%clk 0:03:00]}  c5 {[%clk 0:02:58]} 5. Nf3 {[%clk 0:02:59]}  Nc6 {[%clk 0:02:58]} 6. Ne5 {[%clk 0:03:00]}  cxd4 {[%clk 0:02:46]} 7. exd4 {[%clk 0:03:00]}  Qb6 {[%clk 0:02:47]} 8. Nxc6 {[%clk 0:02:58]}  bxc6 {[%clk 0:02:44]} 9. Qd2 {[%clk 0:02:07]}  Qxb2 {[%clk 0:02:04]} 10. Rb1 {[%clk 0:02:07]}  Qa3 {[%clk 0:02:03]} 11. Bc7 {[%clk 0:02:06]}  e6 {[%clk 0:01:30]} 12. Bd3 {[%clk 0:01:49]}  Qe7 {[%clk 0:01:28]} 13. Qf4 {[%clk 0:01:34]}  g5 {[%clk 0:01:03]} 14. Qxg5 {[%clk 0:01:19]}  Rg8 {[%clk 0:01:02]} 15. Qe5 {[%clk 0:01:05]}  Ng4 {[%clk 0:00:53]} 16. Qf4 {[%clk 0:01:00]}  Bh6 {[%clk 0:00:49]} 17. Qd6 {[%clk 0:01:00]}  Qg5 {[%clk 0:00:18]} 18. f4 {[%clk 0:00:31]}  Qh4+ {[%clk 0:00:08]} 19. g3 {[%clk 0:00:32]}  Qh3 {[%clk 0:00:05]} 20. Qd8# {[%clk 0:00:32]} 1-0


[Site "https://www.chess.com"]

[Event "Titled Tuesday Blitz May 4 2021"]
[White "Golizadeh, Asghar"]
[Black "Gombocz, Ferenc Jr."]
[WhiteFideId "12505269"]
[BlackFideId "775029"]
[WhiteElo "2403"]
[BlackElo "1913"]
[Result "0-1"]
[Round "10"]
[TimeControl "180+1"]
[Date "2021.05.04"]
[WhiteClock "0:00:49"]
[BlackClock "0:00:42"]

1. e4 {[%clk 0:03:00]}  e5 {[%clk 0:02:58]} 2. Nf3 {[%clk 0:03:00]}  Nf6 {[%clk 0:02:58]} 3. Nxe5 {[%clk 0:02:59]}  d6 {[%clk 0:02:58]} 4. Nf3 {[%clk 0:02:59]}  Nxe4 {[%clk 0:02:58]} 5. Nc3 {[%clk 0:03:00]}  Nxc3 {[%clk 0:02:55]} 6. dxc3 {[%clk 0:03:01]}  Be7 {[%clk 0:02:52]} 7. Bf4 {[%clk 0:03:01]}  O-O {[%clk 0:02:52]} 8. Qd2 {[%clk 0:03:02]}  Nc6 {[%clk 0:02:41]} 9. O-O-O {[%clk 0:03:00]}  a5 {[%clk 0:02:41]} 10. Bd3 {[%clk 0:02:58]}  Be6 {[%clk 0:02:39]} 11. Kb1 {[%clk 0:02:48]}  a4 {[%clk 0:02:32]} 12. h3 {[%clk 0:02:37]}  Ra5 {[%clk 0:02:29]} 13. Rhe1 {[%clk 0:02:28]}  Bf6 {[%clk 0:02:27]} 14. a3 {[%clk 0:02:18]}  Re8 {[%clk 0:02:18]} 15. g4 {[%clk 0:02:15]}  h6 {[%clk 0:02:16]} 16. Rg1 {[%clk 0:02:02]}  Bd5 {[%clk 0:02:09]} 17. Nd4 {[%clk 0:01:53]}  Nxd4 {[%clk 0:01:54]} 18. cxd4 {[%clk 0:01:54]}  c6 {[%clk 0:01:46]} 19. g5 {[%clk 0:01:43]}  hxg5 {[%clk 0:01:45]} 20. Bxg5 {[%clk 0:01:43]}  Bxg5 {[%clk 0:01:45]} 21. Rxg5 {[%clk 0:01:42]}  Qxg5 {[%clk 0:01:40]} 22. f4 {[%clk 0:01:14]}  Qd8 {[%clk 0:01:36]} 23. c4 {[%clk 0:01:11]}  Be4 {[%clk 0:01:32]} 24. Bxe4 {[%clk 0:01:07]}  Rxe4 {[%clk 0:01:32]} 25. Rg1 {[%clk 0:01:08]}  Re6 {[%clk 0:00:56]} 26. f5 {[%clk 0:01:05]}  Rxf5 {[%clk 0:00:50]} 27. d5 {[%clk 0:00:53]}  cxd5 {[%clk 0:00:45]} 28. cxd5 {[%clk 0:00:54]}  Ref6 {[%clk 0:00:43]} 29. Re1 {[%clk 0:00:49]}  Rf1 {[%clk 0:00:42]} 0-1


[Site "https://www.chess.com"]

[Event "Titled Tuesday Blitz May 4 2021"]
[White "Golsta, Madara"]
[Black "Carrasco Miranda, Andres"]
[WhiteFideId "11607386"]
[BlackFideId "3405990"]
[WhiteElo "1880"]
[BlackElo "2177"]
[Result "1-0"]
[Round "10"]
[TimeControl "180+1"]
[Date "2021.05.04"]
[WhiteClock "0:00:24"]
[BlackClock "0:00:01"]

1. e4 {[%clk 0:03:00]}  c5 {[%clk 0:02:58]} 2. Nf3 {[%clk 0:03:00]}  d6 {[%clk 0:02:58]} 3. d4 {[%clk 0:03:00]}  cxd4 {[%clk 0:02:59]} 4. Nxd4 {[%clk 0:03:00]}  Nf6 {[%clk 0:03:00]} 5. Nc3 {[%clk 0:02:59]}  a6 {[%clk 0:03:00]} 6. Bd3 {[%clk 0:02:57]}  e5 {[%clk 0:02:59]} 7. Nde2 {[%clk 0:02:57]}  Be7 {[%clk 0:02:59]} 8. O-O {[%clk 0:02:55]}  O-O {[%clk 0:02:59]} 9. a4 {[%clk 0:02:47]}  Nbd7 {[%clk 0:02:57]} 10. Nd5 {[%clk 0:02:45]}  Nxd5 {[%clk 0:02:57]} 11. exd5 {[%clk 0:02:45]}  f5 {[%clk 0:02:57]} 12. f4 {[%clk 0:02:37]}  e4 {[%clk 0:02:51]} 13. Bc4 {[%clk 0:02:36]}  Nf6 {[%clk 0:02:44]} 14. Nd4 {[%clk 0:02:27]}  Kh8 {[%clk 0:02:27]} 15. a5 {[%clk 0:02:24]}  Bd7 {[%clk 0:02:21]} 16. Kh1 {[%clk 0:02:20]}  Rc8 {[%clk 0:02:20]} 17. b3 {[%clk 0:02:17]}  Ng4 {[%clk 0:00:58]} 18. h3 {[%clk 0:02:14]}  Bf6 {[%clk 0:00:59]} 19. hxg4 {[%clk 0:02:06]}  Bxd4 {[%clk 0:00:58]} 20. Qxd4 {[%clk 0:01:38]}  Qh4+ {[%clk 0:00:58]} 21. Kg1 {[%clk 0:01:38]}  fxg4 {[%clk 0:00:59]} 22. Rd1 {[%clk 0:01:27]}  g3 {[%clk 0:00:56]} 23. Bb2 {[%clk 0:01:08]}  Qh2+ {[%clk 0:00:48]} 24. Kf1 {[%clk 0:01:08]}  Rxf4+ {[%clk 0:00:48]} 25. Ke1 {[%clk 0:01:03]}  Rg8 {[%clk 0:00:22]} 26. Kd2 {[%clk 0:00:56]}  Qh6 {[%clk 0:00:17]} 27. Kc1 {[%clk 0:00:43]}  Rf1+ {[%clk 0:00:09]} 28. Kb1 {[%clk 0:00:43]}  Rxd1+ {[%clk 0:00:05]} 29. Qxd1 {[%clk 0:00:44]}  e3 {[%clk 0:00:04]} 30. Ka2 {[%clk 0:00:43]}  Qf4 {[%clk 0:00:04]} 31. Qe2 {[%clk 0:00:40]}  Bg4 {[%clk 0:00:04]} 32. Qd3 {[%clk 0:00:38]}  e2 {[%clk 0:00:03]} 33. Re1 {[%clk 0:00:37]}  Qf2 {[%clk 0:00:03]} 34. Qd2 {[%clk 0:00:33]}  Re8 {[%clk 0:00:02]} 35. Qc3 {[%clk 0:00:31]}  Re7 {[%clk 0:00:02]} 36. Bxe2 {[%clk 0:00:25]}  Bxe2 {[%clk 0:00:01]} 37. Qc8+ {[%clk 0:00:24]} 1-0


[Site "https://www.chess.com"]

[Event "Titled Tuesday Blitz May 4 2021"]
[White "Grineva, Marianna"]
[Black "Melkevik, Johannes"]
[WhiteFideId "14102013"]
[BlackFideId "1501836"]
[WhiteElo "1925"]
[BlackElo "1727"]
[Result "1-0"]
[Round "10"]
[TimeControl "180+1"]
[Date "2021.05.04"]
[WhiteClock "0:00:35"]
[BlackClock "0:00:08"]

1. e4 {[%clk 0:03:00]}  c5 {[%clk 0:02:56]} 2. b4 {[%clk 0:02:58]}  cxb4 {[%clk 0:02:54]} 3. a3 {[%clk 0:02:58]}  d5 {[%clk 0:02:54]} 4. exd5 {[%clk 0:02:56]}  Nf6 {[%clk 0:02:54]} 5. Nf3 {[%clk 0:02:55]}  Nxd5 {[%clk 0:02:53]} 6. d4 {[%clk 0:02:54]}  Nc6 {[%clk 0:02:52]} 7. axb4 {[%clk 0:02:52]}  e5 {[%clk 0:02:23]} 8. c3 {[%clk 0:02:29]}  exd4 {[%clk 0:02:20]} 9. Nxd4 {[%clk 0:02:29]}  Nxd4 {[%clk 0:02:08]} 10. Qxd4 {[%clk 0:02:28]}  Be7 {[%clk 0:02:06]} 11. Bb5+ {[%clk 0:02:26]}  Kf8 {[%clk 0:01:59]} 12. O-O {[%clk 0:02:22]}  Bf6 {[%clk 0:01:59]} 13. Qc5+ {[%clk 0:02:19]}  Be7 {[%clk 0:01:51]} 14. Qc4 {[%clk 0:02:13]}  Be6 {[%clk 0:01:49]} 15. Qe2 {[%clk 0:02:05]}  g6 {[%clk 0:01:48]} 16. Bh6+ {[%clk 0:02:05]}  Kg8 {[%clk 0:01:43]} 17. Rd1 {[%clk 0:02:05]}  Qb6 {[%clk 0:01:29]} 18. Na3 {[%clk 0:01:31]}  Rc8 {[%clk 0:01:03]} 19. Rxd5 {[%clk 0:01:30]}  Bxd5 {[%clk 0:00:54]} 20. Qxe7 {[%clk 0:01:27]}  Qe6 {[%clk 0:00:53]} 21. Re1 {[%clk 0:01:13]}  a6 {[%clk 0:00:30]} 22. Bd7 {[%clk 0:01:06]}  Qxe7 {[%clk 0:00:27]} 23. Rxe7 {[%clk 0:01:04]}  Rd8 {[%clk 0:00:27]} 24. f3 {[%clk 0:00:55]}  Be6 {[%clk 0:00:16]} 25. Bxe6 {[%clk 0:00:53]}  fxe6 {[%clk 0:00:17]} 26. Nc4 {[%clk 0:00:44]}  e5 {[%clk 0:00:08]} 27. Nxe5 {[%clk 0:00:35]} 1-0


[Site "https://www.chess.com"]

[Event "Titled Tuesday Blitz May 4 2021"]
[White "Gritsenko, Nikolai"]
[Black "Tari, Aryan"]
[WhiteFideId "14112493"]
[BlackFideId "1510045"]
[WhiteElo "2389"]
[BlackElo "2656"]
[Result "0-1"]
[Round "10"]
[TimeControl "180+1"]
[Date "2021.05.04"]
[WhiteClock "0:00:05"]
[BlackClock "0:00:10"]

1. e4 {[%clk 0:03:00]}  c6 {[%clk 0:02:59]} 2. d4 {[%clk 0:02:57]}  d5 {[%clk 0:03:00]} 3. f3 {[%clk 0:02:57]}  g6 {[%clk 0:02:58]} 4. Nc3 {[%clk 0:02:56]}  Bg7 {[%clk 0:02:57]} 5. Be3 {[%clk 0:02:56]}  Qb6 {[%clk 0:02:57]} 6. Rb1 {[%clk 0:02:53]}  e5 {[%clk 0:02:43]} 7. Nge2 {[%clk 0:02:52]}  dxe4 {[%clk 0:02:08]} 8. Nxe4 {[%clk 0:02:45]}  Qc7 {[%clk 0:02:09]} 9. dxe5 {[%clk 0:02:38]}  Bxe5 {[%clk 0:02:09]} 10. Bd4 {[%clk 0:02:38]}  Ne7 {[%clk 0:02:01]} 11. Bxe5 {[%clk 0:02:25]}  Qxe5 {[%clk 0:02:00]} 12. Qd6 {[%clk 0:02:24]}  Qxd6 {[%clk 0:01:54]} 13. Nxd6+ {[%clk 0:02:23]}  Kf8 {[%clk 0:01:54]} 14. Kf2 {[%clk 0:02:15]}  Kg7 {[%clk 0:01:53]} 15. Nf4 {[%clk 0:02:07]}  Rd8 {[%clk 0:01:50]} 16. Rd1 {[%clk 0:02:00]}  Rf8 {[%clk 0:00:58]} 17. h4 {[%clk 0:01:52]}  Nf5 {[%clk 0:00:55]} 18. h5 {[%clk 0:01:16]}  Nxd6 {[%clk 0:00:51]} 19. Rxd6 {[%clk 0:01:12]}  Nd7 {[%clk 0:00:52]} 20. Bc4 {[%clk 0:01:01]}  Nb6 {[%clk 0:00:51]} 21. Bb3 {[%clk 0:01:00]}  Re8 {[%clk 0:00:34]} 22. h6+ {[%clk 0:00:49]}  Kg8 {[%clk 0:00:28]} 23. Rf6 {[%clk 0:00:48]}  Re7 {[%clk 0:00:26]} 24. Nxg6 {[%clk 0:00:46]}  hxg6 {[%clk 0:00:26]} 25. h7+ {[%clk 0:00:40]}  Kh8 {[%clk 0:00:26]} 26. Bxf7 {[%clk 0:00:40]}  Bf5 {[%clk 0:00:20]} 27. Bxg6 {[%clk 0:00:37]}  Bxg6 {[%clk 0:00:16]} 28. Rxg6 {[%clk 0:00:37]}  Rxh7 {[%clk 0:00:17]} 29. Rxh7+ {[%clk 0:00:37]}  Kxh7 {[%clk 0:00:18]} 30. Re6 {[%clk 0:00:37]}  Rb8 {[%clk 0:00:14]} 31. f4 {[%clk 0:00:33]}  Kg7 {[%clk 0:00:14]} 32. g4 {[%clk 0:00:32]}  Kf7 {[%clk 0:00:14]} 33. Rh6 {[%clk 0:00:32]}  Rg8 {[%clk 0:00:14]} 34. Kf3 {[%clk 0:00:30]}  Nd5 {[%clk 0:00:11]} 35. g5 {[%clk 0:00:28]}  Rg6 {[%clk 0:00:09]} 36. Rh7+ {[%clk 0:00:26]}  Rg7 {[%clk 0:00:10]} 37. Rh6 {[%clk 0:00:23]}  Rg6 {[%clk 0:00:09]} 38. Rh7+ {[%clk 0:00:23]}  Rg7 {[%clk 0:00:10]} 39. Rh6 {[%clk 0:00:23]}  Ke7 {[%clk 0:00:08]} 40. c4 {[%clk 0:00:19]}  Nc7 {[%clk 0:00:08]} 41. Ke4 {[%clk 0:00:14]}  Ne6 {[%clk 0:00:07]} 42. Ke5 {[%clk 0:00:12]}  Nc5 {[%clk 0:00:08]} 43. b4 {[%clk 0:00:11]}  Nd3+ {[%clk 0:00:08]} 44. Kf5 {[%clk 0:00:09]}  Nxb4 {[%clk 0:00:09]} 45. g6 {[%clk 0:00:09]}  Nc2 {[%clk 0:00:08]} 46. Rh7 {[%clk 0:00:09]}  Nd4+ {[%clk 0:00:02]} 47. Ke5 {[%clk 0:00:07]}  Ne6 {[%clk 0:00:02]} 48. f5 {[%clk 0:00:06]}  Rxh7 {[%clk 0:00:03]} 49. gxh7 {[%clk 0:00:05]}  Ng5 {[%clk 0:00:04]} 50. f6+ {[%clk 0:00:03]}  Kd7 {[%clk 0:00:02]} 51. Kf5 {[%clk 0:00:03]}  Nf7 {[%clk 0:00:02]} 52. Kg6 {[%clk 0:00:04]}  Ke6 {[%clk 0:00:02]} 53. Kg7 {[%clk 0:00:04]}  b5 {[%clk 0:00:02]} 54. cxb5 {[%clk 0:00:04]}  cxb5 {[%clk 0:00:03]} 55. Kg6 {[%clk 0:00:04]}  a5 {[%clk 0:00:04]} 56. Kh5 {[%clk 0:00:04]}  Kxf6 {[%clk 0:00:04]} 57. Kg4 {[%clk 0:00:05]}  Ke5 {[%clk 0:00:04]} 58. Kf3 {[%clk 0:00:05]}  b4 {[%clk 0:00:04]} 59. Ke2 {[%clk 0:00:06]}  Kd4 {[%clk 0:00:05]} 60. Kd2 {[%clk 0:00:06]}  Kc4 {[%clk 0:00:05]} 61. Kc2 {[%clk 0:00:06]}  a4 {[%clk 0:00:06]} 62. Kb2 {[%clk 0:00:06]}  b3 {[%clk 0:00:06]} 63. axb3+ {[%clk 0:00:06]}  axb3 {[%clk 0:00:06]} 64. Kb1 {[%clk 0:00:06]}  Kc3 {[%clk 0:00:07]} 65. Kc1 {[%clk 0:00:06]}  Nh8 {[%clk 0:00:07]} 66. Kb1 {[%clk 0:00:06]}  b2 {[%clk 0:00:08]} 67. Ka2 {[%clk 0:00:05]}  Kc2 {[%clk 0:00:09]} 68. Ka3 {[%clk 0:00:05]}  b1=Q {[%clk 0:00:10]} 0-1


[Site "https://www.chess.com"]

[Event "Titled Tuesday Blitz May 4 2021"]
[White "Indjic, Aleksandar"]
[Black "Bellahcene, Bilel"]
[WhiteFideId "911925"]
[BlackFideId "696358"]
[WhiteElo "2591"]
[BlackElo "2493"]
[Result "1-0"]
[Round "10"]
[TimeControl "180+1"]
[Date "2021.05.04"]
[WhiteClock "0:01:42"]
[BlackClock "0:01:26"]

1. d4 {[%clk 0:03:00]}  e6 {[%clk 0:02:47]} 2. c4 {[%clk 0:02:59]}  b6 {[%clk 0:02:45]} 3. a3 {[%clk 0:02:46]}  Bb7 {[%clk 0:02:45]} 4. Nc3 {[%clk 0:02:46]}  Nf6 {[%clk 0:02:46]} 5. Nf3 {[%clk 0:02:46]}  Ne4 {[%clk 0:02:46]} 6. Nxe4 {[%clk 0:02:45]}  Bxe4 {[%clk 0:02:47]} 7. Bf4 {[%clk 0:02:45]}  Be7 {[%clk 0:02:44]} 8. e3 {[%clk 0:02:45]}  O-O {[%clk 0:02:42]} 9. Bd3 {[%clk 0:02:45]}  Bxd3 {[%clk 0:02:40]} 10. Qxd3 {[%clk 0:02:46]}  d6 {[%clk 0:02:39]} 11. h4 {[%clk 0:02:46]}  Nd7 {[%clk 0:02:37]} 12. Ng5 {[%clk 0:02:39]}  Nf6 {[%clk 0:02:35]} 13. O-O-O {[%clk 0:02:36]}  d5 {[%clk 0:02:31]} 14. cxd5 {[%clk 0:02:16]}  exd5 {[%clk 0:02:09]} 15. Be5 {[%clk 0:02:16]}  g6 {[%clk 0:02:09]} 16. h5 {[%clk 0:01:56]}  h6 {[%clk 0:01:32]} 17. hxg6 {[%clk 0:01:42]}  hxg5 {[%clk 0:01:26]} 18. g7 {[%clk 0:01:42]} 1-0


[Site "https://www.chess.com"]

[Event "Titled Tuesday Blitz May 4 2021"]
[White "Iniyan, P"]
[Black "Bortnyk, Olexandr"]
[WhiteFideId "25002767"]
[BlackFideId "14120828"]
[WhiteElo "2400"]
[BlackElo "2723"]
[Result "1-0"]
[Round "10"]
[TimeControl "180+1"]
[Date "2021.05.04"]
[WhiteClock "0:00:10"]
[BlackClock "0:00:04"]

1. d4 {[%clk 0:03:00]}  d6 {[%clk 0:02:57]} 2. c4 {[%clk 0:03:01]}  e5 {[%clk 0:02:57]} 3. Nf3 {[%clk 0:03:00]}  e4 {[%clk 0:02:58]} 4. Nfd2 {[%clk 0:03:00]}  f5 {[%clk 0:02:58]} 5. e3 {[%clk 0:03:01]}  g6 {[%clk 0:02:58]} 6. Nc3 {[%clk 0:03:01]}  Bh6 {[%clk 0:02:57]} 7. b4 {[%clk 0:03:00]}  Nf6 {[%clk 0:02:55]} 8. a4 {[%clk 0:02:58]}  c6 {[%clk 0:02:47]} 9. Be2 {[%clk 0:02:54]}  d5 {[%clk 0:02:46]} 10. b5 {[%clk 0:02:53]}  O-O {[%clk 0:02:46]} 11. Ba3 {[%clk 0:02:51]}  Rf7 {[%clk 0:02:46]} 12. g3 {[%clk 0:02:49]}  Be6 {[%clk 0:02:44]} 13. Qb3 {[%clk 0:02:47]}  Nbd7 {[%clk 0:02:37]} 14. c5 {[%clk 0:02:23]}  a6 {[%clk 0:02:24]} 15. b6 {[%clk 0:02:18]}  Ng4 {[%clk 0:01:55]} 16. Nd1 {[%clk 0:02:07]}  Bg7 {[%clk 0:01:47]} 17. h3 {[%clk 0:02:07]}  Ngf6 {[%clk 0:01:46]} 18. Qc2 {[%clk 0:02:02]}  h6 {[%clk 0:01:44]} 19. Nb3 {[%clk 0:02:02]}  Nf8 {[%clk 0:01:37]} 20. Na5 {[%clk 0:02:01]}  Qd7 {[%clk 0:01:34]} 21. h4 {[%clk 0:01:36]}  Ng4 {[%clk 0:01:31]} 22. Kd2 {[%clk 0:01:35]}  g5 {[%clk 0:01:25]} 23. Kc3 {[%clk 0:01:22]}  f4 {[%clk 0:01:20]} 24. hxg5 {[%clk 0:01:15]}  hxg5 {[%clk 0:01:21]} 25. Rh5 {[%clk 0:01:11]}  fxg3 {[%clk 0:01:00]} 26. fxg3 {[%clk 0:01:08]}  Nh7 {[%clk 0:01:00]} 27. Kb3 {[%clk 0:01:02]}  Nxe3 {[%clk 0:00:44]} 28. Nxe3 {[%clk 0:00:57]}  Bxd4 {[%clk 0:00:45]} 29. Rah1 {[%clk 0:00:24]}  Bxe3 {[%clk 0:00:45]} 30. Bb2 {[%clk 0:00:24]}  Rd8 {[%clk 0:00:20]} 31. Ka3 {[%clk 0:00:20]}  Bf5 {[%clk 0:00:15]} 32. Nb3 {[%clk 0:00:19]}  Qe7 {[%clk 0:00:07]} 33. Qc3 {[%clk 0:00:12]}  d4 {[%clk 0:00:07]} 34. Qb4 {[%clk 0:00:11]}  d3 {[%clk 0:00:06]} 35. Bd1 {[%clk 0:00:10]}  Be6 {[%clk 0:00:03]} 36. Qc3 {[%clk 0:00:10]}  Rg7 {[%clk 0:00:04]} 37. Rxh7 {[%clk 0:00:08]}  Rxh7 {[%clk 0:00:04]} 38. Qh8+ {[%clk 0:00:08]}  Rxh8 {[%clk 0:00:04]} 39. Rxh8+ {[%clk 0:00:09]}  Kf7 {[%clk 0:00:04]} 40. Bh5# {[%clk 0:00:10]} 1-0


[Site "https://www.chess.com"]

[Event "Titled Tuesday Blitz May 4 2021"]
[White "Josse, Mark"]
[Black "Peralta, Eduardo"]
[WhiteFideId "414476"]
[BlackFideId "3700062"]
[WhiteElo "2286"]
[BlackElo "2205"]
[Result "0-1"]
[Round "10"]
[TimeControl "180+1"]
[Date "2021.05.04"]
[WhiteClock "0:00:01"]
[BlackClock "0:00:31"]

1. c4 {[%clk 0:02:54]}  e5 {[%clk 0:02:58]} 2. Nc3 {[%clk 0:02:53]}  Nc6 {[%clk 0:02:58]} 3. Nf3 {[%clk 0:02:53]}  d6 {[%clk 0:02:58]} 4. e3 {[%clk 0:02:52]}  g6 {[%clk 0:02:56]} 5. d4 {[%clk 0:02:52]}  Bg7 {[%clk 0:02:56]} 6. Be2 {[%clk 0:02:49]}  Nge7 {[%clk 0:02:55]} 7. O-O {[%clk 0:02:49]}  O-O {[%clk 0:02:53]} 8. d5 {[%clk 0:02:41]}  Nb8 {[%clk 0:02:49]} 9. e4 {[%clk 0:02:41]}  a5 {[%clk 0:02:49]} 10. Ne1 {[%clk 0:02:36]}  Na6 {[%clk 0:02:48]} 11. Be3 {[%clk 0:02:34]}  f5 {[%clk 0:02:47]} 12. f3 {[%clk 0:02:34]}  f4 {[%clk 0:02:47]} 13. Bf2 {[%clk 0:02:33]}  g5 {[%clk 0:02:47]} 14. Nd3 {[%clk 0:02:31]}  Rf6 {[%clk 0:02:46]} 15. c5 {[%clk 0:02:31]}  h5 {[%clk 0:02:44]} 16. cxd6 {[%clk 0:02:20]}  cxd6 {[%clk 0:02:42]} 17. Rc1 {[%clk 0:02:20]}  b6 {[%clk 0:02:40]} 18. Nb5 {[%clk 0:02:19]}  Nc5 {[%clk 0:02:39]} 19. b4 {[%clk 0:02:12]}  axb4 {[%clk 0:02:38]} 20. Nxb4 {[%clk 0:02:11]}  Rg6 {[%clk 0:02:36]} 21. Nc6 {[%clk 0:02:09]}  Qd7 {[%clk 0:02:29]} 22. Bxc5 {[%clk 0:01:55]}  bxc5 {[%clk 0:02:28]} 23. a4 {[%clk 0:01:37]}  g4 {[%clk 0:02:27]} 24. Bc4 {[%clk 0:01:11]}  Kh7 {[%clk 0:02:25]} 25. Ra1 {[%clk 0:01:03]}  Rg5 {[%clk 0:02:21]} 26. a5 {[%clk 0:01:03]}  Ng6 {[%clk 0:02:21]} 27. Ra3 {[%clk 0:00:53]}  Nh4 {[%clk 0:02:20]} 28. Kh1 {[%clk 0:00:52]}  Ba6 {[%clk 0:02:10]} 29. Rg1 {[%clk 0:00:27]}  g3 {[%clk 0:02:09]} 30. h3 {[%clk 0:00:20]}  Bc8 {[%clk 0:02:04]} 31. Qa1 {[%clk 0:00:15]}  Nxf3 {[%clk 0:02:00]} 32. Rxf3 {[%clk 0:00:13]}  Rg6 {[%clk 0:01:43]} 33. Qb2 {[%clk 0:00:12]}  Rg4 {[%clk 0:01:32]} 34. Ra1 {[%clk 0:00:10]}  Rh4 {[%clk 0:01:31]} 35. Kg1 {[%clk 0:00:10]}  Qb7 {[%clk 0:01:26]} 36. Rb3 {[%clk 0:00:08]}  Qd7 {[%clk 0:01:19]} 37. Rba3 {[%clk 0:00:06]}  Ba6 {[%clk 0:01:18]} 38. Qe2 {[%clk 0:00:06]}  Rf8 {[%clk 0:01:13]} 39. Rf3 {[%clk 0:00:03]}  Rf6 {[%clk 0:01:06]} 40. Ra4 {[%clk 0:00:03]}  Qb7 {[%clk 0:01:05]} 41. Nc3 {[%clk 0:00:02]}  Bxc4 {[%clk 0:00:59]} 42. Rxc4 {[%clk 0:00:03]}  Qa6 {[%clk 0:00:52]} 43. Ra4 {[%clk 0:00:01]}  Qa8 {[%clk 0:00:51]} 44. a6 {[%clk 0:00:01]}  Rf7 {[%clk 0:00:47]} 45. a7 {[%clk 0:00:01]}  Rb7 {[%clk 0:00:45]} 46. Qa6 {[%clk 0:00:01]}  Rb2 {[%clk 0:00:42]} 47. Rf1 {[%clk 0:00:01]}  c4 {[%clk 0:00:33]} 48. Ne7 {[%clk 0:00:01]}  f3 {[%clk 0:00:31]} 0-1


[Site "https://www.chess.com"]